bitfinex/quotes_ETHUSD_20250602
["timestamp","ask_amount","ask_price","bid_price","bid_amount"]
[1748834930083,4.00913567,2494.4,2493.9,0.7898]
[1748834930284,4.00913567,2494.4,2493.9,4.79955466]
[1748834930485,8.24988766,2494.5,2493.9,4.79955466]
[1748834930683,4.00900567,2494.4,2493.9,4.79955466]
[1748834931088,4.00900567,2494.4,2493.9,0.7898]
[1748834931289,4.00900567,2494.4,2493.9,4.79956802]
[1748834932366,4.00900567,2494.4,2493.9,0.7898]
[1748834932564,4.00900567,2494.4,2493.9,4.79954645]
[1748834933353,4.00900567,2494.4,2493.9,5.68050881]
[1748834933656,4.241,2494.5,2494.0,4.0096067]
[1748834933867,0.37552894,2494.5,2494.0,4.0096067]
[1748834934128,0.92552894,2494.5,2494.1,4.00942858]
[1748834934285,0.37553862,2494.6,2494.2,0.0400924]
[1748834934491,0.37553862,2494.7,2494.2,1.1602521]
[1748834934687,4.61560728,2494.7,2494.2,1.1602521]
[1748834934986,4.24,2494.7,2494.2,1.1602521]
[1748834935152,4.24,2494.7,2494.2,5.169422]
[1748834935472,4.00837351,2494.8,2494.3,4.00912335]
[1748834935678,4.239,2494.7,2494.3,4.92700375]
[1748834936075,12.01818668,2494.9,2494.4,4.00896677]
[1748834936278,5.16461515,2494.8,2494.4,4.00896677]
[1748834936573,4.789,2494.8,2494.4,4.00896677]
[1748834936778,0.55,2494.8,2494.5,0.49268472]
[1748834936978,4.239,2494.7,2494.5,0.49268472]
[1748834937992,0.55,2494.8,2494.5,0.49268472]
[1748834938191,4.789,2494.8,2494.5,0.49268472]
[1748834939993,0.01,2494.9,2494.6,0.7829]
[1748834940169,0.01,2494.9,2494.8,4.00833734]
[1748834940376,0.01,2494.9,2494.8,4.88832309]
[1748834940575,0.01,2494.9,2494.8,0.87998575]
[1748834940781,0.01,2494.9,2494.6,0.7829]
[1748834940981,4.01820015,2494.9,2494.6,0.7829]
[1748834941193,0.01,2494.9,2494.6,0.7829]
[1748834942689,0.01,2494.9,2494.6,4.79154567]
[1748834943093,0.01,2494.9,2494.6,0.7829]
[1748834943294,0.01,2494.9,2494.6,1.66296262]
[1748834943992,0.01,2494.9,2494.6,0.88006262]
[1748834944305,0.01,2494.9,2494.6,4.00865063]
[1748834945739,0.01,2494.9,2494.5,4.00874075]
[1748834946245,0.01,2494.9,2494.5,4.00878493]
[1748834946246,4.247,2494.9,2494.5,4.00878493]
[1748834947350,4.247,2494.9,2494.6,4.00864075]
[1748834947729,4.246,2494.9,2494.7,4.00847238]
[1748834947906,4.246,2494.9,2494.6,4.00859597]
[1748834948843,4.246,2494.9,2494.5,4.00875638]
[1748834949139,4.246,2494.9,2494.5,4.0087094]
[1748834949344,4.246,2494.9,2494.5,0.48153094]
[1748834949644,4.246,2494.9,2494.4,0.8066]
[1748834949645,4.246,2494.9,2494.6,4.00864459]
[1748834950659,4.246,2494.9,2494.4,4.81552881]
[1748834950827,4.246,2494.9,2494.5,4.00877811]
[1748834951240,4.246,2494.9,2494.6,4.00864526]
[1748834951913,4.245,2494.9,2494.4,0.8066]
[1748834952114,4.245,2494.9,2494.7,4.0083905]
[1748834953137,4.245,2494.9,2494.6,4.00861609]
[1748834953375,4.245,2494.9,2494.6,4.89100479]
[1748834954349,4.245,2494.9,2494.7,4.00846481]
[1748834956242,0.01,2494.9,2494.7,4.00846481]
[1748834956696,0.01,2494.9,2494.6,0.8823887]
[1748834956859,0.01,2494.9,2494.6,4.89096745]
[1748834957197,0.01,2494.9,2494.7,4.89844123]
[1748834957859,0.01,2494.9,2494.7,4.00846266]
[1748834959486,0.01,2494.9,2494.4,0.8066]
[1748834959487,0.01,2494.9,2494.8,4.80283734]
[1748834959779,0.01,2494.9,2494.6,4.00863968]
[1748834960569,0.8102,2494.9,2494.5,0.7945]
[1748834960760,0.8102,2494.9,2494.5,4.80320876]
[1748834960964,0.01,2494.9,2494.6,0.48032088]
[1748834961164,0.01,2494.9,2494.7,4.00841056]
[1748834961597,0.01,2494.9,2494.5,0.7945]
[1748834961796,0.01,2494.9,2494.6,4.00863249]
[1748834962301,0.01,2494.9,2494.5,4.80329562]
[1748834962602,0.01,2494.9,2494.6,4.0086587]
[1748834962790,0.01,2494.9,2494.7,4.88967848]
[1748834962987,0.01,2494.9,2494.7,0.88119543]
[1748834964173,0.01,2494.9,2494.7,4.88967916]
[1748834967194,0.01,2494.9,2494.8,4.00833734]
[1748834968699,0.01,2494.9,2494.7,4.88961505]
[1748834969013,0.01,2494.9,2494.8,4.49729884]
[1748834969599,0.01,2494.9,2494.8,0.4889615]
[1748834970177,0.01,2494.9,2494.4,0.8316]
[1748834970382,0.01,2494.9,2494.5,4.00867635]
[1748834970597,0.01,2494.9,2494.6,4.00865003]
[1748834971322,0.01,2494.9,2494.5,4.008819]
[1748834971525,0.01,2494.9,2494.6,4.00855785]
[1748834971743,0.01,2494.9,2494.7,0.80173769]
[1748834971922,0.01,2494.9,2494.6,4.00855785]
[1748834972425,4.24,2494.9,2494.6,4.00855785]
[1748834973236,0.01,2494.9,2494.4,0.8316]
[1748834973440,4.24,2494.9,2494.5,4.00872573]
[1748834973784,4.0182202,2494.9,2494.4,4.84051662]
[1748834974037,8.2482202,2494.9,2494.5,0.48405166]
[1748834974248,4.60606892,2494.8,2494.3,4.00901399]
[1748834974531,4.23,2494.8,2494.3,4.00908691]
[1748834974724,8.23842048,2494.8,2494.3,4.00908691]
[1748834975520,4.23,2494.8,2494.3,4.00908691]
[1748834975702,4.23,2494.8,2494.3,4.88874693]
[1748834977330,4.23,2494.8,2494.4,4.00894416]
[1748834978094,4.23,2494.8,2494.3,4.88872987]
[1748834978830,8.23836325,2494.8,2494.3,4.88872987]
[1748834979032,4.23,2494.8,2494.3,4.88872987]
[1748834979327,4.01821421,2494.9,2494.4,4.00891954]
[1748834979536,4.60486881,2494.8,2494.4,4.00891954]
[1748834979920,4.229,2494.8,2494.4,4.00891954]
[1748834980541,4.60482429,2494.8,2494.4,4.00891954]
[1748834980835,8.61320506,2494.8,2494.3,4.8887106]
[1748834981034,8.23738077,2494.8,2494.3,4.8887106]
[1748834981836,4.229,2494.8,2494.3,4.8887106]
[1748834982035,4.60480192,2494.8,2494.3,4.8887106]
[1748834982337,0.37580192,2494.8,2494.4,4.00896832]
[1748834982539,4.228,2494.7,2494.4,4.00896832]
[1748834983900,4.228,2494.7,2494.3,4.88872625]
[1748834985358,4.60378429,2494.7,2494.3,4.88872625]
[1748834985562,4.228,2494.7,2494.3,4.88872625]
[1748834985755,4.228,2494.7,2494.2,4.00922804]
[1748834985756,0.8128,2494.6,2494.2,4.00922804]
[1748834986052,0.8128,2494.6,2494.2,4.00928945]
[1748834986838,0.8128,2494.6,2494.3,4.00913101]
[1748834987447,0.8128,2494.6,2494.0,0.7665]
[1748834987649,0.8128,2494.6,2494.2,4.00915804]
[1748834987850,0.8128,2494.6,2494.2,4.88767008]
[1748834988557,0.8128,2494.6,2494.3,4.00913508]
[1748834990773,0.8128,2494.6,2494.4,4.00889849]
[1748834990957,0.8128,2494.6,2494.3,4.00906258]
[1748834993035,0.8128,2494.6,2494.4,4.00894458]
[1748834993281,0.8128,2494.6,2494.5,0.40089446]
[1748834993637,5.0388,2494.6,2494.5,0.40089446]
[1748834993838,5.0388,2494.6,2494.4,4.00894458]
[1748834994071,0.8209,2494.8,2494.4,4.00894458]
[1748834994272,4.226,2494.6,2494.4,4.00894458]
[1748834995778,0.8209,2494.8,2494.4,4.00894458]
[1748834996145,4.225,2494.7,2494.4,4.00894458]
[1748834997256,0.8209,2494.8,2494.4,4.00894458]
[1748834997453,4.225,2494.7,2494.4,4.00894458]
[1748834997678,4.225,2494.6,2494.4,4.89861783]
[1748835000093,4.224,2494.6,2494.4,4.89861783]
[1748835000851,0.8209,2494.8,2494.4,4.89861783]
[1748835001061,4.224,2494.7,2494.4,4.00894458]
[1748835001277,4.224,2494.7,2494.1,4.00940825]
[1748835001482,4.224,2494.7,2494.3,4.00910078]
[1748835001686,0.8009,2494.5,2494.1,4.00946233]
[1748835001899,0.8009,2494.5,2494.0,4.00962309]
[1748835002065,0.8009,2494.5,2494.2,4.00924802]
[1748835002948,2.83259106,2494.3,2493.6,5.5391]
[1748835003275,11.06587006,2494.3,2493.6,4.79936307]
[1748835003476,0.8009,2494.2,2493.7,4.01001024]
[1748835003676,4.81034828,2494.2,2493.5,4.01041208]
[1748835003984,4.81034828,2494.2,2493.7,4.01008806]
[1748835004192,4.81034828,2494.2,2493.6,0.48038121]
[1748835004193,0.8009,2494.2,2493.4,0.7934]
[1748835004391,0.8009,2494.2,2493.4,3.62599106]
[1748835004904,0.8009,2494.2,2494.0,4.00959295]
[1748835005047,0.63354696,2494.9,2494.3,4.00914084]
[1748835005048,0.8106,2494.4,2494.3,4.00914084]
[1748835005247,1.18644495,2494.6,2494.2,4.00915306]
[1748835005451,4.223,2494.5,2494.3,4.00912283]
[1748835005651,1.18643932,2494.6,2494.4,4.00889384]
[1748835005889,5.0336,2494.6,2494.4,4.00889384]
[1748835006391,4.223,2494.6,2494.4,4.00889384]
[1748835010525,4.222,2494.6,2494.5,4.00880561]
[1748835011510,0.83,2494.8,2494.5,4.00880561]
[1748835011675,4.222,2494.6,2494.4,4.00898011]
[1748835012208,4.222,2494.6,2494.5,4.0088194]
[1748835012912,4.222,2494.6,2494.4,4.0089521]
[1748835013079,4.222,2494.6,2494.5,4.0088194]
[1748835013416,4.222,2494.6,2494.4,4.00892213]
[1748835013911,4.222,2494.6,2494.4,4.00898011]
[1748835014116,4.222,2494.6,2494.2,0.8061]
[1748835014415,4.222,2494.6,2494.4,4.00896773]
[1748835018113,4.222,2494.6,2494.2,1.16996911]
[1748835018320,4.222,2494.6,2494.2,5.17917573]
[1748835018481,4.222,2494.6,2494.4,4.00897251]
[1748835018682,4.172,2494.6,2494.4,4.00897251]
[1748835020125,8.18069509,2494.6,2494.2,0.36386911]
[1748835020328,8.18069509,2494.6,2494.1,4.00943438]
[1748835020329,0.8307,2494.5,2494.1,4.00943438]
[1748835020529,0.8307,2494.5,2494.0,4.00955074]
[1748835020835,0.8307,2494.3,2493.4,0.7671]
[1748835021139,8.22931016,2494.2,2493.7,4.01003275]
[1748835021300,4.22,2494.2,2493.7,4.81206849]
[1748835021503,4.22,2494.2,2493.7,4.01003275]
[1748835021725,8.22931806,2494.2,2493.7,4.01003275]
[1748835022109,4.22,2494.2,2493.7,4.01003275]
[1748835022528,4.22,2494.2,2493.7,4.010027]
[1748835023037,8.22932879,2494.2,2493.7,4.010027]
[1748835023234,8.22932879,2494.2,2493.7,4.8120665]
[1748835023542,4.76653292,2494.1,2493.5,4.01042711]
[1748835023751,6.84248019,2493.9,2493.2,4.7954708]
[1748835023950,4.9872,2493.8,2493.4,4.01050413]
[1748835024243,4.9872,2493.8,2493.3,4.01068615]
[1748835024401,8.99719185,2493.8,2493.2,4.0108336]
[1748835024738,8.99721158,2493.8,2493.2,5.28865696]
[1748835025138,8.99721158,2493.8,2493.3,4.01074258]
[1748835025442,8.99721158,2493.8,2493.2,1.27782336]
[1748835025667,8.99721158,2493.8,2493.3,4.01073624]
[1748835025807,8.99721158,2493.8,2493.1,4.01103733]
[1748835026003,8.99721158,2493.8,2493.3,4.01074367]
[1748835026203,4.9872,2493.8,2493.3,4.01074367]
[1748835027050,4.9872,2493.8,2493.3,4.01067681]
[1748835027255,4.9872,2493.8,2493.3,0.80215772]
[1748835027418,1.138,2494.5,2494.0,4.0095501]
[1748835027624,0.775,2494.4,2493.8,3.58649106]
[1748835027854,4.994,2494.4,2494.1,4.00937966]
[1748835028036,0.775,2494.6,2494.4,4.00898011]
[1748835028251,4.993,2494.6,2494.4,4.00898011]
[1748835028549,4.218,2494.6,2494.3,4.00906835]
[1748835031043,4.218,2494.6,2494.4,4.00893374]
[1748835031218,0.8327,2494.7,2494.4,4.85084971]
[1748835031425,4.218,2494.6,2494.4,4.85081834]
[1748835032644,4.218,2494.6,2494.4,0.84191597]
[1748835034207,4.218,2494.6,2494.4,4.85089083]
[1748835035033,4.218,2494.6,2494.4,0.84191597]
[1748835041966,4.218,2494.6,2494.3,4.00906679]
[1748835042780,0.8327,2494.7,2494.3,4.00906679]
[1748835043081,4.214,2494.6,2494.3,4.00906679]
[1748835043377,4.214,2494.6,2494.4,4.00897935]
[1748835044141,4.214,2494.6,2494.5,4.0088194]
[1748835045042,4.214,2494.6,2494.4,4.00890912]
[1748835045253,0.8327,2494.7,2494.4,4.00890912]
[1748835045457,4.214,2494.6,2494.5,4.00878949]
[1748835046180,0.7924,2494.9,2494.6,4.0086587]
[1748835046479,0.01,2494.9,2494.8,4.00833734]
[1748835047338,0.01,2494.9,2494.8,7.6374284]
[1748835048140,0.01,2494.9,2494.8,15.6374284]
[1748835048442,0.01,2495.9,2495.7,4.006762]
[1748835049379,0.01,2495.9,2495.5,4.75910144]
[1748835049380,0.01,2495.9,2495.8,4.0067313]
[1748835049940,0.01,2495.9,2495.7,4.00679846]
[1748835050565,0.01,2495.9,2495.8,4.0067313]
[1748835052501,0.01,2495.9,2495.8,4.8134313]
[1748835052661,0.01,2495.9,2495.8,20.99002236]
[1748835052997,0.01,2495.9,2495.8,23.48971272]
[1748835054003,0.01,2495.9,2495.8,18.14571272]
[1748835055013,0.01,2495.9,2495.8,15.31312166]
[1748835056876,0.01,2495.9,2495.8,6.50642166]
[1748835057074,0.01,2495.9,2495.8,4.0067313]
[1748835057278,0.01,2495.9,2495.8,4.7885313]
[1748835058585,0.01,2495.9,2495.8,4.0067313]
[1748835059004,0.01,2495.9,2495.5,0.7818]
[1748835059005,0.01,2495.9,2495.5,4.00720375]
[1748835059209,0.01,2495.9,2495.7,4.00685801]
[1748835059490,0.01,2495.9,2495.7,0.80140618]
[1748835059791,0.01,2495.9,2495.3,0.7818]
[1748835060025,0.01,2495.9,2495.4,4.00736767]
[1748835060332,0.56,2495.9,2495.3,4.78923094]
[1748835060516,0.7724,2495.5,2494.8,1.133]
[1748835060684,0.7724,2495.5,2494.8,5.97190909]
[1748835060890,2.83259106,2495.3,2494.5,1.63239255]
[1748835061089,1.3224,2495.5,2494.2,1.16243797]
[1748835061090,0.7833,2495.0,2494.2,1.16243797]
[1748835061330,2.83259106,2494.9,2494.3,4.00903566]
[1748835061524,6.84086949,2494.9,2494.3,4.00903566]
[1748835062524,6.84086949,2494.9,2494.4,4.0089711]
[1748835062930,6.84086949,2494.9,2494.3,4.00908654]
[1748835063128,6.84086949,2494.9,2494.4,0.91808155]
[1748835063430,0.55,2494.9,2494.4,4.9270399]
[1748835064091,0.55,2494.9,2494.4,0.91808155]
[1748835064290,0.55,2494.9,2493.9,8.7615]
[1748835064527,4.55821968,2494.9,2493.9,12.7711709]
[1748835064824,4.00847858,2494.8,2494.2,4.0091661]
[1748835065042,0.55,2494.9,2494.5,4.0087954]
[1748835066063,0.55,2494.9,2494.5,4.00870723]
[1748835066472,0.8007,2495.3,2494.6,0.40087072]
[1748835066669,4.00790888,2495.1,2494.5,4.00872142]
[1748835067039,4.00790888,2495.1,2494.6,4.00864805]
[1748835067362,4.00790888,2495.1,2494.5,4.00874386]
[1748835067543,4.55777941,2495.2,2494.6,4.00854848]
[1748835068169,4.00787172,2495.1,2494.6,4.00854848]
[1748835068467,4.00787172,2495.1,2494.5,4.00873099]
[1748835069061,8.21587172,2495.1,2494.5,4.00873099]
[1748835069264,8.21587172,2495.1,2494.6,4.00864989]
[1748835070133,4.208,2495.1,2494.6,4.00864989]
[1748835070658,4.208,2495.1,2494.7,4.00838634]
[1748835070969,0.8007,2495.3,2495.2,4.00769477]
[1748835071635,4.00678833,2495.8,2495.2,4.00769477]
[1748835071838,4.9596,2495.7,2495.0,4.00797392]
[1748835072164,4.00717143,2495.6,2494.8,4.00833734]
[1748835072465,4.00717143,2495.6,2495.0,4.0079903]
[1748835072647,4.00717143,2495.6,2495.1,4.00784815]
[1748835072843,4.9596,2495.7,2494.9,0.47717373]
[1748835073067,0.7524,2495.3,2494.7,4.00839706]
[1748835073281,4.9594,2495.3,2494.8,4.00820562]
[1748835074760,0.7524,2495.3,2495.1,4.00774263]
[1748835074947,0.7524,2495.3,2495.0,4.00794533]
[1748835075152,0.7524,2495.3,2494.9,4.0081415]
[1748835075448,0.7524,2495.3,2495.0,4.00798497]
[1748835075636,0.7524,2495.3,2494.6,9.43756991]
[1748835075972,0.7524,2495.3,2494.9,4.00814466]
[1748835076162,0.7524,2495.3,2495.0,4.00788312]
[1748835076557,0.7524,2495.3,2494.9,4.00811077]
[1748835076871,0.7524,2495.3,2495.1,4.00782512]
[1748835078950,5.0195,2495.5,2495.2,4.00760455]
[1748835079347,0.8235,2495.9,2495.3,0.04007249]
[1748835079685,0.8235,2495.9,2495.4,4.00732091]
[1748835079686,4.83008506,2495.9,2495.4,4.00732091]
[1748835079883,4.83008506,2495.9,2495.4,4.0073304]
[1748835080180,0.8235,2495.9,2495.4,4.0073304]
[1748835080343,0.8235,2495.9,2495.5,4.00720965]
[1748835081852,0.8235,2495.9,2495.4,4.80880816]
[1748835082786,4.83009573,2495.9,2495.4,4.80880816]
[1748835083289,0.8235,2495.9,2495.4,4.80880816]
[1748835083865,0.8235,2495.9,2495.5,4.00720508]
[1748835084192,0.8235,2495.9,2495.5,4.88882893]
[1748835085655,0.8235,2495.9,2495.5,0.88162385]
[1748835085989,0.8235,2495.9,2495.7,4.00688223]
[1748835086491,0.01,2495.9,2495.8,4.0067313]
[1748835087599,0.01,2495.9,2495.8,9.5097313]
[1748835087803,0.01,2495.9,2495.8,17.5097313]
[1748835087951,0.01,2495.9,2495.8,17.91075196]
[1748835088153,0.01,2495.9,2495.8,20.49777496]
[1748835088961,0.01,2495.9,2495.8,28.65438065]
[1748835089156,0.01,2495.9,2495.8,25.83077496]
[1748835089356,0.01,2495.9,2495.8,21.62677496]
[1748835092312,0.01,2495.9,2495.8,11.3437543]
[1748835094783,0.7945,2495.9,2495.8,2.587023]
[1748835094982,0.7945,2495.9,2495.7,4.00687681]
[1748835095393,0.7945,2495.9,2495.2,4.00760322]
[1748835095600,4.00698346,2495.7,2495.2,4.0076737]
[1748835095947,0.7836,2495.6,2495.2,4.00766392]
[1748835096289,0.7836,2495.6,2495.1,4.00785199]
[1748835096619,4.79066204,2495.6,2495.1,4.84951209]
[1748835096933,0.7836,2495.6,2495.1,4.84951209]
[1748835097113,4.79066861,2495.6,2495.1,4.84951209]
[1748835097711,0.7836,2495.6,2495.1,4.84951209]
[1748835097908,4.79073843,2495.6,2495.1,0.8416807]
[1748835098113,4.55729066,2495.5,2494.9,4.00816805]
[1748835098735,0.55,2495.5,2495.0,4.0080056]
[1748835099349,0.55,2495.5,2495.1,4.00784532]
[1748835099556,4.7907249,2495.6,2495.1,4.00784532]
[1748835099557,0.55,2495.3,2495.1,4.00784532]
[1748835099709,0.7836,2495.6,2494.7,4.00849801]
[1748835099915,4.203,2495.5,2495.2,4.00769477]
[1748835101349,4.203,2495.5,2495.3,4.00752506]
[1748835102922,0.7836,2495.6,2495.4,4.00727752]
[1748835103136,4.9856,2495.6,2495.4,4.00722742]
[1748835103662,0.7836,2495.6,2495.4,4.00722742]
[1748835105369,0.7836,2495.6,2495.3,4.00747118]
[1748835105567,0.7836,2495.6,2495.3,4.89064433]
[1748835105735,0.7836,2495.6,2495.3,0.88317315]
[1748835106068,0.7836,2495.6,2495.2,4.00769477]
[1748835108176,0.7836,2495.6,2495.1,4.00775867]
[1748835108343,0.7836,2495.6,2495.0,4.00798169]
[1748835108974,0.7836,2495.6,2495.2,4.00756371]
[1748835109992,0.7836,2495.6,2495.3,4.00753021]
[1748835110443,0.7836,2495.6,2495.3,4.80906803]
[1748835111551,0.7836,2495.6,2495.3,0.80153782]
[1748835111751,0.7836,2495.6,2495.2,4.00761772]
[1748835111956,0.7836,2495.6,2495.3,4.00753046]
[1748835112856,0.7836,2495.6,2495.2,4.00761491]
[1748835114848,0.7836,2495.6,2495.3,4.0075159]
[1748835117686,4.201,2495.5,2495.3,4.00753416]
[1748835117991,4.201,2495.5,2495.3,4.80905611]
[1748835118666,4.201,2495.5,2495.3,0.80152195]
[1748835118860,4.201,2495.5,2495.2,4.00769477]
[1748835119166,4.201,2495.5,2495.1,4.00780201]
[1748835119372,4.201,2495.5,2495.3,4.00752246]
[1748835120267,4.201,2495.5,2494.8,8.39685298]
[1748835120464,4.2,2495.5,2495.4,4.00737356]
[1748835120665,0.7757,2495.8,2495.5,4.00710273]
[1748835120869,4.9757,2495.8,2495.6,4.00699468]
[1748835121487,4.9757,2495.8,2495.5,4.00713265]
[1748835121700,4.9757,2495.8,2495.4,4.40806459]
[1748835121999,4.9757,2495.8,2494.7,0.7997]
[1748835122000,0.7938,2495.2,2494.7,0.7997]
[1748835122297,0.7938,2495.0,2494.5,4.00873448]
[1748835122499,0.7938,2495.0,2494.6,4.0085711]
[1748835122704,0.7938,2495.0,2494.7,0.40085711]
[1748835123202,4.2,2495.5,2494.8,2.86583546]
[1748835123499,4.2,2495.5,2495.1,4.00777649]
[1748835124298,4.2,2495.5,2495.2,4.00760808]
[1748835124496,0.7938,2495.7,2495.4,4.00729736]
[1748835124698,4.2,2495.6,2495.4,4.00729736]
[1748835125803,4.2,2495.5,2495.4,4.00729736]
[1748835127099,0.7938,2495.7,2495.5,4.00718858]
[1748835127300,4.2,2495.6,2495.5,4.80862069]
[1748835128195,0.8207,2495.9,2495.5,0.80147156]
[1748835128396,4.199,2495.8,2495.6,4.00694394]
[1748835130716,4.199,2495.8,2495.2,0.80153846]
[1748835130717,0.8107,2495.6,2495.2,4.00768904]
[1748835131112,0.55,2495.5,2494.7,1.21475711]
[1748835131412,4.199,2495.4,2495.1,4.00776275]
[1748835132230,4.199,2495.4,2495.0,4.00793698]
[1748835132427,4.199,2495.4,2495.1,4.00782624]
[1748835133326,4.199,2495.4,2495.2,4.00766023]
[1748835134118,0.55,2495.5,2495.2,4.00766023]
[1748835134315,4.199,2495.4,2495.2,4.00766023]
[1748835134821,0.8107,2495.6,2495.2,4.00766023]
[1748835135024,4.198,2495.5,2495.3,4.00752928]
[1748835135222,4.198,2495.5,2495.4,4.00737356]
[1748835135796,4.198,2495.5,2495.3,4.00746272]
[1748835136426,5.0087,2495.6,2495.3,4.00746272]
[1748835137205,5.0087,2495.6,2495.3,4.9789384]
[1748835138028,4.198,2495.7,2495.5,4.0071252]
[1748835138229,4.198,2495.7,2495.3,0.97147568]
[1748835138402,4.198,2495.7,2495.3,4.00751991]
[1748835138603,4.198,2495.7,2495.5,4.00719739]
[1748835141646,4.197,2495.7,2495.1,0.8179]
[1748835141953,4.197,2495.7,2494.8,12.83450082]
[1748835141954,0.55,2495.6,2494.8,12.83450082]
[1748835142105,0.55,2495.6,2495.0,4.00801603]
[1748835142308,4.197,2495.7,2495.3,4.00750748]
[1748835142623,4.197,2495.6,2495.4,4.0072942]
[1748835144939,4.197,2495.6,2495.5,4.00721298]
[1748835145130,4.197,2495.6,2495.4,4.00729272]
[1748835145306,4.197,2495.6,2495.4,4.89139409]
[1748835146246,4.197,2495.6,2495.4,0.88410137]
[1748835146907,4.197,2495.6,2495.4,4.89147366]
[1748835149650,4.196,2495.7,2495.4,4.89147366]
[1748835149860,4.196,2495.7,2495.4,0.88410137]
[1748835150367,4.79732012,2495.5,2494.9,1.81565008]
[1748835150522,0.7901,2495.5,2494.8,0.7542]
[1748835150709,0.7901,2495.5,2495.1,4.00773051]
[1748835153563,4.00763376,2495.3,2494.8,0.7542]
[1748835153752,4.9968,2495.2,2494.6,4.0086587]
[1748835153919,4.9968,2495.2,2494.9,4.00806784]
[1748835154563,0.8008,2495.2,2494.7,0.48156587]
[1748835154715,0.8008,2495.5,2495.1,4.00785539]
[1748835154922,4.195,2495.4,2495.1,4.00785539]
[1748835155466,4.9958,2495.5,2495.2,4.00765704]
[1748835155754,4.9958,2495.5,2495.1,4.8901031]
[1748835155925,4.9958,2495.5,2495.0,4.00793993]
[1748835156315,4.9958,2495.5,2495.1,4.00781122]
[1748835156820,9.00310481,2495.5,2494.8,7.64114203]
[1748835157153,4.9958,2495.5,2494.9,4.0081749]
[1748835157353,4.9958,2495.5,2495.1,4.00783364]
[1748835157555,9.00301637,2495.5,2495.0,4.0079899]
[1748835157763,4.9958,2495.5,2494.8,0.807]
[1748835158062,0.8008,2495.2,2494.7,4.00843626]
[1748835158361,0.8008,2495.2,2494.7,4.89084375]
[1748835158560,0.8008,2495.2,2494.8,4.00831214]
[1748835159560,0.8008,2495.2,2494.7,4.89083245]
[1748835159882,0.8008,2495.2,2494.8,4.00829534]
[1748835162053,0.8008,2495.2,2494.4,0.7705]
[1748835162255,0.7973,2495.0,2494.2,2.82580768]
[1748835162562,0.7973,2495.0,2494.9,4.00817668]
[1748835162801,0.7973,2495.0,2494.8,4.00828147]
[1748835163376,0.8063,2495.2,2494.7,4.00849801]
[1748835163600,0.8063,2495.2,2494.9,4.00807707]
[1748835163783,0.8063,2495.2,2494.8,4.0082605]
[1748835163962,0.8063,2495.2,2494.8,5.09251712]
[1748835164370,0.8063,2495.2,2494.9,4.00810631]
[1748835164691,0.55,2495.3,2494.9,4.00810631]
[1748835165657,0.55,2495.3,2495.0,4.00799656]
[1748835165994,0.55,2495.3,2494.9,4.00809528]
[1748835166194,0.55,2495.3,2494.8,1.08425662]
[1748835166400,0.55,2495.3,2494.9,4.00816848]
[1748835168154,0.55,2495.3,2494.8,4.00828108]
[1748835168361,4.00770144,2495.2,2494.7,4.00842187]
[1748835168593,0.8034,2495.1,2494.7,4.00842187]
[1748835169799,0.55,2495.0,2494.5,4.00874064]
[1748835170000,0.55,2495.0,2494.1,4.82275142]
[1748835170001,0.8034,2494.9,2494.1,4.82275142]
[1748835170223,0.8034,2494.9,2493.4,4.0105697]
[1748835170224,1.3534,2493.9,2493.2,0.8134]
[1748835170497,9.55723191,2493.9,2493.3,4.0106348]
[1748835170700,4.01004678,2493.8,2493.4,0.48240348]
[1748835170997,5.5474,2493.9,2493.4,4.49296058]
[1748835171167,5.5474,2493.9,2493.4,0.48240348]
[1748835172164,5.5474,2493.9,2493.4,4.4929522]
[1748835172583,5.5474,2493.9,2493.5,4.01040675]
[1748835172904,5.5474,2493.9,2493.4,4.49293343]
[1748835175714,9.55719141,2493.9,2493.4,4.49293343]
[1748835175915,0.55,2493.8,2493.1,0.01]
[1748835176125,0.55,2493.8,2493.4,4.01055985]
[1748835176323,0.55,2493.8,2493.5,4.01037494]
[1748835177387,4.9974,2493.9,2493.4,4.01058602]
[1748835177589,0.8034,2493.9,2493.5,4.01033394]
[1748835177789,0.8034,2493.9,2493.6,4.01018092]
[1748835178691,0.8034,2493.9,2493.8,4.00994466]
[1748835178891,0.8034,2493.9,2493.7,4.01004986]
[1748835179925,0.8034,2493.9,2493.5,4.01036672]
[1748835180828,0.8034,2493.9,2493.6,4.01013807]
[1748835181029,0.7631,2494.1,2493.6,4.85238037]
[1748835181334,4.194,2494.0,2493.8,4.00991083]
[1748835181826,4.194,2494.0,2493.5,0.8252]
[1748835181995,4.194,2494.0,2493.4,0.4010586]
[1748835181996,4.194,2494.0,2493.4,4.41152852]
[1748835182330,4.194,2494.0,2493.5,4.01042711]
[1748835183028,8.20364861,2494.0,2493.5,4.01042711]
[1748835183324,4.194,2494.0,2493.5,4.01042711]
[1748835183502,4.194,2494.0,2493.6,4.01026475]
[1748835183703,0.7631,2494.1,2493.6,3.66799851]
[1748835183904,0.752,2494.3,2494.0,4.00962309]
[1748835184086,2.82580768,2494.8,2494.3,4.00912915]
[1748835184087,0.752,2494.8,2494.3,4.00912915]
[1748835184290,0.752,2494.6,2493.8,2.82580768]
[1748835184545,4.76067388,2494.6,2493.9,4.00967586]
[1748835184722,4.00940251,2494.2,2493.5,0.795]
[1748835184889,0.752,2494.1,2493.7,4.01000846]
[1748835185097,0.752,2494.1,2493.7,4.49050931]
[1748835185927,0.752,2494.1,2493.7,0.48050085]
[1748835186323,4.76153071,2494.1,2493.7,0.48050085]
[1748835186508,4.76153071,2494.1,2493.6,4.01016447]
[1748835186834,0.752,2494.1,2493.7,4.01005064]
[1748835187034,0.752,2494.1,2493.8,4.00993835]
[1748835187614,4.9783,2494.3,2494.0,4.00962309]
[1748835187943,0.7843,2494.3,2494.0,4.00962309]
[1748835188108,4.9783,2494.3,2494.0,4.00962309]
[1748835188632,4.9783,2494.3,2494.1,4.00934884]
[1748835188939,8.0,2494.6,2494.0,4.00962309]